[Event "Titled Tuesday Blitz January 17 Early 2023"]
[White "Csonka, Balazs"]
[Black "Zhigalko, Sergei"]
[WhiteFideId "742910"]
[BlackFideId "13502956"]
[WhiteElo "2496"]
[BlackElo "2572"]
[Result "1/2-1/2"]
[Round "10"]
[TimeControl "180+2"]
[Date "2023.01.17"]
[WhiteClock "0:00:04"]
[BlackClock "0:00:02"]

1. d4 {[%clk 0:03:00]}  Nf6 {[%clk 0:03:00]} 2. c4 {[%clk 0:02:57]}  e6 {[%clk 0:03:00]} 3. Nc3 {[%clk 0:02:55]}  Bb4 {[%clk 0:03:00]} 4. f3 {[%clk 0:02:43]}  d5 {[%clk 0:02:59]} 5. a3 {[%clk 0:02:41]}  Be7 {[%clk 0:02:59]} 6. e4 {[%clk 0:02:40]}  dxe4 {[%clk 0:03:00]} 7. fxe4 {[%clk 0:02:40]}  e5 {[%clk 0:03:01]} 8. d5 {[%clk 0:02:39]}  O-O {[%clk 0:03:00]} 9. Be2 {[%clk 0:02:30]}  Bc5 {[%clk 0:02:52]} 10. Nf3 {[%clk 0:02:09]}  Ng4 {[%clk 0:02:51]} 11. b4 {[%clk 0:02:08]}  Bf2+ {[%clk 0:02:41]} 12. Kd2 {[%clk 0:01:44]}  a5 {[%clk 0:02:04]} 13. Bb2 {[%clk 0:01:15]}  Be3+ {[%clk 0:01:55]} 14. Kc2 {[%clk 0:01:15]}  Nf2 {[%clk 0:01:54]} 15. Qg1 {[%clk 0:01:14]}  axb4 {[%clk 0:01:41]} 16. axb4 {[%clk 0:01:15]}  Rxa1 {[%clk 0:01:41]} 17. Bxa1 {[%clk 0:01:15]}  Na6 {[%clk 0:01:40]} 18. Na2 {[%clk 0:01:06]}  c5 {[%clk 0:01:16]} 19. Bxe5 {[%clk 0:00:52]}  Re8 {[%clk 0:01:09]} 20. Bf4 {[%clk 0:00:47]}  Bxf4 {[%clk 0:00:51]} 21. Qxf2 {[%clk 0:00:47]}  Rxe4 {[%clk 0:00:52]} 22. Bd3 {[%clk 0:00:44]}  Be3 {[%clk 0:00:36]} 23. Qg3 {[%clk 0:00:36]}  Rg4 {[%clk 0:00:36]} 24. Qe5 {[%clk 0:00:32]}  Rxg2+ {[%clk 0:00:32]} 25. Kb1 {[%clk 0:00:32]}  Rxa2 {[%clk 0:00:10]} 26. Kxa2 {[%clk 0:00:05]}  Nxb4+ {[%clk 0:00:10]} 27. Kb3 {[%clk 0:00:06]}  Bh6 {[%clk 0:00:10]} 28. Re1 {[%clk 0:00:05]}  Bd7 {[%clk 0:00:11]} 29. Bf5 {[%clk 0:00:04]}  Ba4+ {[%clk 0:00:05]} 30. Kxa4 {[%clk 0:00:03]}  Qa8+ {[%clk 0:00:05]} 31. Kb5 {[%clk 0:00:03]}  Qa6+ {[%clk 0:00:03]} 32. Kxc5 {[%clk 0:00:03]}  g6 {[%clk 0:00:04]} 33. Qe8+ {[%clk 0:00:03]}  Bf8+ {[%clk 0:00:04]} 34. Kd4 {[%clk 0:00:02]}  Qb6+ {[%clk 0:00:03]} 35. Kc3 {[%clk 0:00:02]}  Na2+ {[%clk 0:00:03]} 36. Kc2 {[%clk 0:00:02]}  Qb4 {[%clk 0:00:03]} 37. Ne5 {[%clk 0:00:01]}  Qc3+ {[%clk 0:00:02]} 38. Kd1 {[%clk 0:00:01]}  Qd4+ {[%clk 0:00:02]} 39. Ke2 {[%clk 0:00:02]}  Nc3+ {[%clk 0:00:02]} 40. Kf1 {[%clk 0:00:02]}  Qf4+ {[%clk 0:00:02]} 41. Kg1 {[%clk 0:00:02]}  Qxf5 {[%clk 0:00:02]} 42. Nd7 {[%clk 0:00:02]}  Qg4+ {[%clk 0:00:01]} 43. Kf1 {[%clk 0:00:02]}  Qf3+ {[%clk 0:00:01]} 44. Kg1 {[%clk 0:00:03]}  Qg4+ {[%clk 0:00:02]} 45. Kf2 {[%clk 0:00:03]}  Qf4+ {[%clk 0:00:02]} 46. Kg2 {[%clk 0:00:03]}  Qg4+ {[%clk 0:00:02]} 47. Kf2 {[%clk 0:00:03]}  Qf4+ {[%clk 0:00:02]} 48. Kg1 {[%clk 0:00:04]}  Qg4+ {[%clk 0:00:02]} 1/2-1/2


[Site "https://www.chess.com"]

[Event "Titled Tuesday Blitz January 17 Early 2023"]
[White "Kobalia, Mikhail"]
[Black "Deac, Bogdan-Daniel"]
[WhiteFideId "4119150"]
[BlackFideId "1226380"]
[WhiteElo "2578"]
[BlackElo "2700"]
[Result "1/2-1/2"]
[Round "10"]
[TimeControl "180+2"]
[Date "2023.01.17"]
[WhiteClock "0:00:07"]
[BlackClock "0:00:02"]

1. e4 {[%clk 0:02:56]}  c5 {[%clk 0:02:54]} 2. Nf3 {[%clk 0:02:55]}  d6 {[%clk 0:02:55]} 3. d4 {[%clk 0:02:55]}  cxd4 {[%clk 0:02:56]} 4. Nxd4 {[%clk 0:02:55]}  Nf6 {[%clk 0:02:56]} 5. Nc3 {[%clk 0:02:55]}  e5 {[%clk 0:02:57]} 6. Nf5 {[%clk 0:02:53]}  Bxf5 {[%clk 0:02:53]} 7. exf5 {[%clk 0:02:53]}  d5 {[%clk 0:02:53]} 8. Bg5 {[%clk 0:02:51]}  Bb4 {[%clk 0:02:53]} 9. Bb5+ {[%clk 0:02:48]}  Nc6 {[%clk 0:02:50]} 10. O-O {[%clk 0:02:47]}  Bxc3 {[%clk 0:02:38]} 11. bxc3 {[%clk 0:02:47]}  a6 {[%clk 0:02:28]} 12. Ba4 {[%clk 0:02:45]}  O-O {[%clk 0:02:06]} 13. Re1 {[%clk 0:02:44]}  Rc8 {[%clk 0:01:57]} 14. Bxf6 {[%clk 0:02:37]}  Qxf6 {[%clk 0:01:55]} 15. Qxd5 {[%clk 0:02:37]}  Qxf5 {[%clk 0:01:49]} 16. Rad1 {[%clk 0:01:55]}  Qf6 {[%clk 0:01:10]} 17. Bxc6 {[%clk 0:01:24]}  Qxc6 {[%clk 0:01:02]} 18. Qxc6 {[%clk 0:01:18]}  Rxc6 {[%clk 0:01:01]} 19. Rxe5 {[%clk 0:01:18]}  Rxc3 {[%clk 0:01:02]} 20. Re7 {[%clk 0:01:18]}  b5 {[%clk 0:00:54]} 21. Ra7 {[%clk 0:01:13]}  Ra3 {[%clk 0:00:53]} 22. g3 {[%clk 0:01:13]}  Rxa2 {[%clk 0:00:48]} 23. Rd6 {[%clk 0:01:04]}  Rxc2 {[%clk 0:00:23]} 24. Raxa6 {[%clk 0:01:01]}  Rb8 {[%clk 0:00:14]} 25. Ra7 {[%clk 0:01:00]}  Rcc8 {[%clk 0:00:13]} 26. Rdd7 {[%clk 0:00:59]}  Rf8 {[%clk 0:00:13]} 27. Rab7 {[%clk 0:00:54]}  b4 {[%clk 0:00:13]} 28. Rxf7 {[%clk 0:00:53]}  Rxf7 {[%clk 0:00:07]} 29. Rxb8+ {[%clk 0:00:53]}  Rf8 {[%clk 0:00:07]} 30. Rxb4 {[%clk 0:00:54]}  h5 {[%clk 0:00:07]} 31. Rb5 {[%clk 0:00:52]}  g6 {[%clk 0:00:07]} 32. Rb7 {[%clk 0:00:52]}  Rf5 {[%clk 0:00:07]} 33. Kg2 {[%clk 0:00:51]}  Ra5 {[%clk 0:00:07]} 34. Kf3 {[%clk 0:00:50]}  Rf5+ {[%clk 0:00:07]} 35. Ke3 {[%clk 0:00:50]}  Re5+ {[%clk 0:00:08]} 36. Kd4 {[%clk 0:00:48]}  Rf5 {[%clk 0:00:08]} 37. f4 {[%clk 0:00:36]}  h4 {[%clk 0:00:08]} 38. Ke4 {[%clk 0:00:33]}  hxg3 {[%clk 0:00:08]} 39. hxg3 {[%clk 0:00:34]}  Ra5 {[%clk 0:00:08]} 40. g4 {[%clk 0:00:33]}  Kf8 {[%clk 0:00:08]} 41. Rc7 {[%clk 0:00:31]}  Rb5 {[%clk 0:00:08]} 42. Ra7 {[%clk 0:00:31]}  Rc5 {[%clk 0:00:08]} 43. Rd7 {[%clk 0:00:29]}  Ra5 {[%clk 0:00:06]} 44. Rc7 {[%clk 0:00:26]}  Rb5 {[%clk 0:00:05]} 45. Kd4 {[%clk 0:00:26]}  Ra5 {[%clk 0:00:05]} 46. Rc5 {[%clk 0:00:26]}  Ra6 {[%clk 0:00:04]} 47. Ke5 {[%clk 0:00:26]}  Ke7 {[%clk 0:00:04]} 48. Rc7+ {[%clk 0:00:25]}  Kf8 {[%clk 0:00:03]} 49. Rd7 {[%clk 0:00:23]}  Ra4 {[%clk 0:00:04]} 50. g5 {[%clk 0:00:21]}  Kg8 {[%clk 0:00:02]} 51. Re7 {[%clk 0:00:15]}  Kf8 {[%clk 0:00:02]} 52. Rc7 {[%clk 0:00:14]}  Kg8 {[%clk 0:00:02]} 53. Rd7 {[%clk 0:00:14]}  Kf8 {[%clk 0:00:02]} 54. Kf6 {[%clk 0:00:14]}  Ra6+ {[%clk 0:00:02]} 55. Ke5 {[%clk 0:00:14]}  Ra4 {[%clk 0:00:03]} 56. Rc7 {[%clk 0:00:11]}  Kg8 {[%clk 0:00:02]} 57. Rc5 {[%clk 0:00:11]}  Kf8 {[%clk 0:00:02]} 58. Rc6 {[%clk 0:00:11]}  Kf7 {[%clk 0:00:02]} 59. Rc7+ {[%clk 0:00:10]}  Kf8 {[%clk 0:00:02]} 60. Rd7 {[%clk 0:00:09]}  Kg8 {[%clk 0:00:02]} 61. Rd4 {[%clk 0:00:09]}  Ra5+ {[%clk 0:00:02]} 62. Rd5 {[%clk 0:00:08]}  Ra4 {[%clk 0:00:02]} 63. Rc5 {[%clk 0:00:07]}  Kf7 {[%clk 0:00:01]} 64. Rc7+ {[%clk 0:00:07]}  Kf8 {[%clk 0:00:02]} 65. Rc6 {[%clk 0:00:08]}  Kf7 {[%clk 0:00:02]} 66. Rc7+ {[%clk 0:00:07]} 1/2-1/2


[Site "https://www.chess.com"]

[Event "Titled Tuesday Blitz January 17 Early 2023"]
[White "Narayanan, Srinath"]
[Black "Mahdavi, Reza"]
[WhiteFideId "5018420"]
[BlackFideId "12595926"]
[WhiteElo "2559"]
[BlackElo "2339"]
[Result "0-1"]
[Round "10"]
[TimeControl "180+2"]
[Date "2023.01.17"]
[WhiteClock "0:01:19"]
[BlackClock "0:01:00"]

1. Nf3 {[%clk 0:02:58]}  g6 {[%clk 0:02:58]} 2. c4 {[%clk 0:02:57]}  Bg7 {[%clk 0:02:59]} 3. d4 {[%clk 0:02:57]}  d6 {[%clk 0:02:58]} 4. g3 {[%clk 0:02:58]}  Nf6 {[%clk 0:02:58]} 5. Bg2 {[%clk 0:02:59]}  O-O {[%clk 0:02:59]} 6. Nc3 {[%clk 0:02:58]}  c5 {[%clk 0:02:58]} 7. O-O {[%clk 0:02:58]}  Nc6 {[%clk 0:02:58]} 8. d5 {[%clk 0:02:56]}  Na5 {[%clk 0:02:51]} 9. Nd2 {[%clk 0:02:57]}  a6 {[%clk 0:02:51]} 10. Qc2 {[%clk 0:02:55]}  b5 {[%clk 0:02:50]} 11. cxb5 {[%clk 0:02:51]}  axb5 {[%clk 0:02:51]} 12. Nxb5 {[%clk 0:02:52]}  Qb6 {[%clk 0:02:51]} 13. Nc3 {[%clk 0:02:51]}  Bf5 {[%clk 0:02:51]} 14. e4 {[%clk 0:02:48]}  Bc8 {[%clk 0:02:50]} 15. b3 {[%clk 0:02:48]}  Ba6 {[%clk 0:02:46]} 16. Re1 {[%clk 0:02:48]}  Rfb8 {[%clk 0:02:46]} 17. Rb1 {[%clk 0:02:41]}  Ng4 {[%clk 0:02:41]} 18. Na4 {[%clk 0:02:30]}  Qa7 {[%clk 0:02:24]} 19. Bb2 {[%clk 0:02:29]}  Ne5 {[%clk 0:02:17]} 20. Qc3 {[%clk 0:02:13]}  Bd3 {[%clk 0:01:57]} 21. Kh1 {[%clk 0:02:13]}  Bxb1 {[%clk 0:01:54]} 22. Rxb1 {[%clk 0:02:14]}  Bf6 {[%clk 0:01:53]} 23. Qc2 {[%clk 0:02:11]}  c4 {[%clk 0:01:48]} 24. f4 {[%clk 0:02:09]}  cxb3 {[%clk 0:01:47]} 25. axb3 {[%clk 0:02:08]}  Ng4 {[%clk 0:01:47]} 26. h3 {[%clk 0:02:05]}  Ne3 {[%clk 0:01:45]} 27. Qd3 {[%clk 0:01:59]}  Nxg2 {[%clk 0:01:40]} 28. Kxg2 {[%clk 0:02:00]}  Nxb3 {[%clk 0:01:30]} 29. Nxb3 {[%clk 0:01:40]}  Qxa4 {[%clk 0:01:26]} 30. Bxf6 {[%clk 0:01:41]}  exf6 {[%clk 0:01:26]} 31. Ra1 {[%clk 0:01:42]}  Qb4 {[%clk 0:01:19]} 32. Rxa8 {[%clk 0:01:41]}  Rxa8 {[%clk 0:01:20]} 33. Nd4 {[%clk 0:01:41]}  Ra3 {[%clk 0:01:13]} 34. Qd1 {[%clk 0:01:22]}  Qc3 {[%clk 0:01:02]} 35. Nf3 {[%clk 0:01:22]}  Qe3 {[%clk 0:00:59]} 36. e5 {[%clk 0:01:21]}  Ra2+ {[%clk 0:00:59]} 37. Kh1 {[%clk 0:01:19]}  Qf2 {[%clk 0:01:00]} 0-1


[Site "https://www.chess.com"]

[Event "Titled Tuesday Blitz January 17 Early 2023"]
[White "Xu, Yi"]
[Black "Rohith Krishna S"]
[WhiteFideId "8605564"]
[BlackFideId "46617051"]
[WhiteElo "2527"]
[BlackElo "2385"]
[Result "1-0"]
[Round "10"]
[TimeControl "180+2"]
[Date "2023.01.17"]
[WhiteClock "0:00:05"]
[BlackClock "0:00:07"]

1. e4 {[%clk 0:03:00]}  e5 {[%clk 0:03:00]} 2. Nf3 {[%clk 0:03:01]}  Nc6 {[%clk 0:03:00]} 3. Bc4 {[%clk 0:03:01]}  Bc5 {[%clk 0:02:59]} 4. O-O {[%clk 0:03:01]}  Nf6 {[%clk 0:02:59]} 5. d3 {[%clk 0:03:02]}  O-O {[%clk 0:03:00]} 6. c3 {[%clk 0:02:58]}  a5 {[%clk 0:02:59]} 7. Nbd2 {[%clk 0:02:47]}  d6 {[%clk 0:02:58]} 8. h3 {[%clk 0:02:46]}  h6 {[%clk 0:02:58]} 9. Re1 {[%clk 0:02:45]}  Ba7 {[%clk 0:02:54]} 10. Nf1 {[%clk 0:02:44]}  Ne7 {[%clk 0:02:54]} 11. d4 {[%clk 0:02:33]}  Ng6 {[%clk 0:02:54]} 12. Bd3 {[%clk 0:02:30]}  c6 {[%clk 0:02:49]} 13. a4 {[%clk 0:02:26]}  Re8 {[%clk 0:02:49]} 14. Ng3 {[%clk 0:02:26]}  Qc7 {[%clk 0:02:47]} 15. Be3 {[%clk 0:02:23]}  Be6 {[%clk 0:02:45]} 16. Qd2 {[%clk 0:02:11]}  Rad8 {[%clk 0:02:42]} 17. Qc2 {[%clk 0:01:44]}  Bb8 {[%clk 0:02:40]} 18. Rad1 {[%clk 0:01:42]}  Bc8 {[%clk 0:02:39]} 19. c4 {[%clk 0:01:26]}  c5 {[%clk 0:02:24]} 20. d5 {[%clk 0:01:23]}  Qe7 {[%clk 0:02:21]} 21. Qd2 {[%clk 0:01:18]}  Bc7 {[%clk 0:02:21]} 22. Nh2 {[%clk 0:01:09]}  Kh8 {[%clk 0:02:20]} 23. Rf1 {[%clk 0:01:07]}  Nh7 {[%clk 0:02:06]} 24. Bc2 {[%clk 0:01:01]}  Qf8 {[%clk 0:02:00]} 25. Ng4 {[%clk 0:00:58]}  b6 {[%clk 0:01:22]} 26. Ra1 {[%clk 0:00:51]}  Bd7 {[%clk 0:01:21]} 27. Ra3 {[%clk 0:00:50]}  Ra8 {[%clk 0:01:19]} 28. Nf5 {[%clk 0:00:49]}  h5 {[%clk 0:01:05]} 29. Nh2 {[%clk 0:00:49]}  Ne7 {[%clk 0:00:59]} 30. Qe2 {[%clk 0:00:43]}  Bxf5 {[%clk 0:00:36]} 31. exf5 {[%clk 0:00:43]}  Nf6 {[%clk 0:00:37]} 32. Bg5 {[%clk 0:00:41]}  Neg8 {[%clk 0:00:38]} 33. Re1 {[%clk 0:00:25]}  Bd8 {[%clk 0:00:35]} 34. Nf1 {[%clk 0:00:25]}  e4 {[%clk 0:00:23]} 35. Ng3 {[%clk 0:00:22]}  Re5 {[%clk 0:00:24]} 36. Bf4 {[%clk 0:00:19]}  Qe8 {[%clk 0:00:15]} 37. Re3 {[%clk 0:00:13]}  h4 {[%clk 0:00:15]} 38. Bxe5 {[%clk 0:00:11]}  Qxe5 {[%clk 0:00:15]} 39. Nxe4 {[%clk 0:00:12]}  Qxb2 {[%clk 0:00:15]} 40. Nxd6 {[%clk 0:00:11]}  Bc7 {[%clk 0:00:10]} 41. Nxf7+ {[%clk 0:00:11]}  Kh7 {[%clk 0:00:10]} 42. Ng5+ {[%clk 0:00:11]}  Kh6 {[%clk 0:00:10]} 43. Ne6 {[%clk 0:00:11]}  Bd6 {[%clk 0:00:11]} 44. Bd3 {[%clk 0:00:07]}  Qa3 {[%clk 0:00:09]} 45. Qf3 {[%clk 0:00:07]}  Qxa4 {[%clk 0:00:08]} 46. Re4 {[%clk 0:00:06]}  Kh7 {[%clk 0:00:08]} 47. Rxh4+ {[%clk 0:00:06]}  Nh6 {[%clk 0:00:09]} 48. Qe3 {[%clk 0:00:04]}  Ra7 {[%clk 0:00:08]} 49. Ng5+ {[%clk 0:00:04]}  Kg8 {[%clk 0:00:08]} 50. Qe6+ {[%clk 0:00:04]}  Kh8 {[%clk 0:00:07]} 51. Rxh6+ {[%clk 0:00:05]}  gxh6 {[%clk 0:00:07]} 52. Qxf6+ {[%clk 0:00:05]} 1-0


[Site "https://www.chess.com"]

[Event "Titled Tuesday Blitz January 17 Early 2023"]
[White "Krysa, Leandro"]
[Black "Movahed, Sina"]
[WhiteFideId "116807"]
[BlackFideId "42520835"]
[WhiteElo "2541"]
[BlackElo "2340"]
[Result "0-1"]
[Round "10"]
[TimeControl "180+2"]
[Date "2023.01.17"]
[WhiteClock "0:00:23"]
[BlackClock "0:01:54"]

1. e4 {[%clk 0:03:00]}  c5 {[%clk 0:02:57]} 2. Nf3 {[%clk 0:03:00]}  d6 {[%clk 0:02:57]} 3. d4 {[%clk 0:03:01]}  cxd4 {[%clk 0:02:58]} 4. Nxd4 {[%clk 0:03:01]}  Nf6 {[%clk 0:02:58]} 5. Nc3 {[%clk 0:03:02]}  a6 {[%clk 0:02:57]} 6. Rg1 {[%clk 0:03:02]}  e5 {[%clk 0:02:56]} 7. Nb3 {[%clk 0:03:01]}  h5 {[%clk 0:02:56]} 8. h3 {[%clk 0:02:53]}  h4 {[%clk 0:02:54]} 9. f4 {[%clk 0:02:44]}  exf4 {[%clk 0:02:53]} 10. Bxf4 {[%clk 0:02:43]}  Be6 {[%clk 0:02:54]} 11. Qe2 {[%clk 0:02:37]}  Nc6 {[%clk 0:02:52]} 12. O-O-O {[%clk 0:02:36]}  Qc8 {[%clk 0:02:47]} 13. Nd5 {[%clk 0:02:33]}  Rb8 {[%clk 0:02:35]} 14. Nxf6+ {[%clk 0:02:14]}  gxf6 {[%clk 0:02:36]} 15. Bxd6 {[%clk 0:02:08]}  Bxd6 {[%clk 0:02:35]} 16. Rxd6 {[%clk 0:02:09]}  Ke7 {[%clk 0:02:34]} 17. Qd2 {[%clk 0:01:56]}  Qc7 {[%clk 0:02:32]} 18. Be2 {[%clk 0:01:40]}  Rhd8 {[%clk 0:02:28]} 19. Rxd8 {[%clk 0:01:36]}  Rxd8 {[%clk 0:02:28]} 20. Qh6 {[%clk 0:01:35]}  Nb4 {[%clk 0:02:26]} 21. Na1 {[%clk 0:01:09]}  Nxa2+ {[%clk 0:02:23]} 22. Kb1 {[%clk 0:01:10]}  Qb6 {[%clk 0:02:16]} 23. Nb3 {[%clk 0:00:36]}  Qxg1+ {[%clk 0:02:00]} 24. Kxa2 {[%clk 0:00:36]}  Qf2 {[%clk 0:01:57]} 25. Bd3 {[%clk 0:00:26]}  Rxd3 {[%clk 0:01:54]} 26. cxd3 {[%clk 0:00:26]}  Qb6 {[%clk 0:01:54]} 27. Qxh4 {[%clk 0:00:23]}  Qxb3+ {[%clk 0:01:54]} 28. Kb1 {[%clk 0:00:23]}  Qd1# {[%clk 0:01:54]} 0-1


[Site "https://www.chess.com"]

[Event "Titled Tuesday Blitz January 17 Early 2023"]
[White "Tan, Zhongyi"]
[Black "Seo, Jung Min"]
[WhiteFideId "8603642"]
[BlackFideId "1734687"]
[WhiteElo "2517"]
[BlackElo "2494"]
[Result "0-1"]
[Round "10"]
[TimeControl "180+2"]
[Date "2023.01.17"]
[WhiteClock "0:00:03"]
[BlackClock "0:00:40"]

1. d4 {[%clk 0:03:00]}  Nf6 {[%clk 0:02:59]} 2. c4 {[%clk 0:03:00]}  e6 {[%clk 0:02:59]} 3. g3 {[%clk 0:03:01]}  c5 {[%clk 0:02:59]} 4. d5 {[%clk 0:02:59]}  exd5 {[%clk 0:02:59]} 5. cxd5 {[%clk 0:03:00]}  d6 {[%clk 0:02:59]} 6. Nc3 {[%clk 0:02:59]}  g6 {[%clk 0:02:59]} 7. Bg2 {[%clk 0:03:00]}  Bg7 {[%clk 0:03:00]} 8. Nf3 {[%clk 0:03:01]}  O-O {[%clk 0:03:00]} 9. O-O {[%clk 0:03:01]}  Re8 {[%clk 0:03:01]} 10. Re1 {[%clk 0:03:01]}  Nbd7 {[%clk 0:02:52]} 11. Bf4 {[%clk 0:02:57]}  Nb6 {[%clk 0:02:46]} 12. e4 {[%clk 0:02:49]}  Bg4 {[%clk 0:02:46]} 13. Qc2 {[%clk 0:02:43]}  Bxf3 {[%clk 0:02:36]} 14. Bxf3 {[%clk 0:02:44]}  Nc4 {[%clk 0:02:35]} 15. Bg2 {[%clk 0:02:22]}  a6 {[%clk 0:02:34]} 16. Rad1 {[%clk 0:02:18]}  b5 {[%clk 0:02:26]} 17. b3 {[%clk 0:02:16]}  Ne5 {[%clk 0:02:26]} 18. Bxe5 {[%clk 0:02:15]}  Rxe5 {[%clk 0:02:17]} 19. f4 {[%clk 0:02:15]}  Re8 {[%clk 0:02:18]} 20. e5 {[%clk 0:02:14]}  Ng4 {[%clk 0:02:14]} 21. h3 {[%clk 0:02:07]}  Nh6 {[%clk 0:02:14]} 22. e6 {[%clk 0:01:13]}  Nf5 {[%clk 0:02:12]} 23. Ne4 {[%clk 0:01:11]}  Nd4 {[%clk 0:01:57]} 24. Qd3 {[%clk 0:00:50]}  fxe6 {[%clk 0:01:57]} 25. dxe6 {[%clk 0:00:48]}  Rxe6 {[%clk 0:01:54]} 26. Ng5 {[%clk 0:00:29]}  Rxe1+ {[%clk 0:01:53]} 27. Rxe1 {[%clk 0:00:30]}  d5 {[%clk 0:01:53]} 28. Ne6 {[%clk 0:00:19]}  Nxe6 {[%clk 0:01:52]} 29. Qxd5 {[%clk 0:00:17]}  Bd4+ {[%clk 0:01:46]} 30. Kh2 {[%clk 0:00:16]}  Qxd5 {[%clk 0:01:46]} 31. Bxd5 {[%clk 0:00:16]}  Rd8 {[%clk 0:01:42]} 32. Bxe6+ {[%clk 0:00:16]}  Kf8 {[%clk 0:01:42]} 33. Re2 {[%clk 0:00:16]}  Bf6 {[%clk 0:01:35]} 34. g4 {[%clk 0:00:16]}  Rd4 {[%clk 0:01:31]} 35. f5 {[%clk 0:00:15]}  c4 {[%clk 0:01:28]} 36. bxc4 {[%clk 0:00:14]}  bxc4 {[%clk 0:01:29]} 37. fxg6 {[%clk 0:00:13]}  hxg6 {[%clk 0:01:28]} 38. Kg2 {[%clk 0:00:11]}  c3 {[%clk 0:01:28]} 39. Bb3 {[%clk 0:00:11]}  a5 {[%clk 0:01:24]} 40. Bc2 {[%clk 0:00:10]}  Kg7 {[%clk 0:01:23]} 41. Kf3 {[%clk 0:00:09]}  Rb4 {[%clk 0:01:22]} 42. Ke3 {[%clk 0:00:07]}  Rb2 {[%clk 0:01:20]} 43. Bb3 {[%clk 0:00:07]}  Rb1 {[%clk 0:01:10]} 44. Kf3 {[%clk 0:00:05]}  Rf1+ {[%clk 0:01:08]} 45. Kg2 {[%clk 0:00:05]}  Rf4 {[%clk 0:01:08]} 46. a4 {[%clk 0:00:04]}  Rb4 {[%clk 0:01:08]} 47. Bc2 {[%clk 0:00:04]}  Rb2 {[%clk 0:01:08]} 48. Kf3 {[%clk 0:00:04]}  Kh6 {[%clk 0:01:06]} 49. Kg2 {[%clk 0:00:04]}  Kg5 {[%clk 0:01:04]} 50. Kf3 {[%clk 0:00:04]}  Bg7 {[%clk 0:00:58]} 51. h4+ {[%clk 0:00:03]}  Kxh4 {[%clk 0:00:57]} 52. Bxg6 {[%clk 0:00:03]}  Rb4 {[%clk 0:00:55]} 53. Bc2 {[%clk 0:00:03]}  Kg5 {[%clk 0:00:54]} 54. Rh2 {[%clk 0:00:02]}  Rf4+ {[%clk 0:00:48]} 55. Ke3 {[%clk 0:00:03]}  Rxg4 {[%clk 0:00:46]} 56. Rh7 {[%clk 0:00:03]}  Kf6 {[%clk 0:00:44]} 57. Kd3 {[%clk 0:00:03]}  Ke7 {[%clk 0:00:43]} 58. Rh3 {[%clk 0:00:02]}  Rd4+ {[%clk 0:00:41]} 59. Ke2 {[%clk 0:00:02]}  Rd2+ {[%clk 0:00:41]} 60. Ke3 {[%clk 0:00:02]}  Rxc2 {[%clk 0:00:41]} 61. Kd3 {[%clk 0:00:03]}  Rd2+ {[%clk 0:00:41]} 62. Kc4 {[%clk 0:00:03]}  c2 {[%clk 0:00:40]} 0-1


[Site "https://www.chess.com"]

[Event "Titled Tuesday Blitz January 17 Early 2023"]
[White "Harsh Suresh"]
[Black "Agasarov, Benik"]
[WhiteFideId "45018464"]
[BlackFideId "13314823"]
[WhiteElo "2298"]
[BlackElo "2235"]
[Result "1-0"]
[Round "10"]
[TimeControl "180+2"]
[Date "2023.01.17"]
[WhiteClock "0:00:14"]
[BlackClock "0:00:02"]

1. e4 {[%clk 0:03:00]}  e5 {[%clk 0:02:55]} 2. Nf3 {[%clk 0:03:00]}  Nc6 {[%clk 0:02:55]} 3. Bb5 {[%clk 0:03:00]}  Nf6 {[%clk 0:02:46]} 4. O-O {[%clk 0:02:54]}  Nxe4 {[%clk 0:02:45]} 5. Re1 {[%clk 0:02:49]}  Nd6 {[%clk 0:02:45]} 6. Nxe5 {[%clk 0:02:49]}  Be7 {[%clk 0:02:45]} 7. Bf1 {[%clk 0:02:48]}  Nxe5 {[%clk 0:02:45]} 8. Rxe5 {[%clk 0:02:49]}  O-O {[%clk 0:02:46]} 9. d4 {[%clk 0:02:48]}  Bf6 {[%clk 0:02:46]} 10. Re1 {[%clk 0:02:48]}  Re8 {[%clk 0:02:47]} 11. c3 {[%clk 0:02:47]}  Rxe1 {[%clk 0:02:45]} 12. Qxe1 {[%clk 0:02:48]}  Ne8 {[%clk 0:02:45]} 13. Bf4 {[%clk 0:02:48]}  d5 {[%clk 0:02:45]} 14. Nd2 {[%clk 0:02:48]}  Nd6 {[%clk 0:02:42]} 15. g3 {[%clk 0:02:47]}  Bf5 {[%clk 0:02:40]} 16. Bg2 {[%clk 0:02:47]}  c6 {[%clk 0:02:41]} 17. h4 {[%clk 0:02:46]}  Qd7 {[%clk 0:02:37]} 18. Nf3 {[%clk 0:02:44]}  Nc4 {[%clk 0:02:32]} 19. b3 {[%clk 0:02:39]}  Re8 {[%clk 0:02:32]} 20. Qc1 {[%clk 0:02:27]}  Nd6 {[%clk 0:02:27]} 21. Ne5 {[%clk 0:02:21]}  Qd8 {[%clk 0:02:27]} 22. Qa3 {[%clk 0:02:13]}  Nb5 {[%clk 0:02:24]} 23. Qb2 {[%clk 0:02:13]}  Be7 {[%clk 0:02:22]} 24. Re1 {[%clk 0:02:09]}  f6 {[%clk 0:02:19]} 25. Nf3 {[%clk 0:02:08]}  Ba3 {[%clk 0:02:17]} 26. Qd2 {[%clk 0:02:07]}  Rxe1+ {[%clk 0:02:16]} 27. Qxe1 {[%clk 0:02:08]}  Qe7 {[%clk 0:02:16]} 28. Qd2 {[%clk 0:01:35]}  Nd6 {[%clk 0:01:54]} 29. h5 {[%clk 0:01:26]}  Ne4 {[%clk 0:01:52]} 30. Qe3 {[%clk 0:01:21]}  Kf7 {[%clk 0:01:46]} 31. Nh4 {[%clk 0:01:15]}  Bd7 {[%clk 0:01:42]} 32. c4 {[%clk 0:01:14]}  g5 {[%clk 0:01:37]} 33. hxg6+ {[%clk 0:01:13]}  hxg6 {[%clk 0:01:38]} 34. Bb8 {[%clk 0:01:11]}  g5 {[%clk 0:01:34]} 35. Nf3 {[%clk 0:01:08]}  a6 {[%clk 0:01:34]} 36. cxd5 {[%clk 0:01:05]}  cxd5 {[%clk 0:01:35]} 37. Nd2 {[%clk 0:01:02]}  Bc6 {[%clk 0:01:18]} 38. Nxe4 {[%clk 0:00:37]}  dxe4 {[%clk 0:01:19]} 39. Bf1 {[%clk 0:00:37]}  b5 {[%clk 0:01:15]} 40. g4 {[%clk 0:00:32]}  Bd6 {[%clk 0:01:14]} 41. Bxd6 {[%clk 0:00:30]}  Qxd6 {[%clk 0:01:15]} 42. Bg2 {[%clk 0:00:28]}  Qe6 {[%clk 0:01:10]} 43. Qh3 {[%clk 0:00:28]}  Kg7 {[%clk 0:01:09]} 44. Qc3 {[%clk 0:00:29]}  Bd5 {[%clk 0:01:07]} 45. Qc7+ {[%clk 0:00:27]}  Kg6 {[%clk 0:01:07]} 46. Qd8 {[%clk 0:00:26]}  Bc6 {[%clk 0:00:58]} 47. Qb6 {[%clk 0:00:22]}  Qd7 {[%clk 0:00:46]} 48. Qxa6 {[%clk 0:00:21]}  Qxd4 {[%clk 0:00:31]} 49. Qxc6 {[%clk 0:00:20]}  Qa1+ {[%clk 0:00:29]} 50. Bf1 {[%clk 0:00:20]}  Qe5 {[%clk 0:00:16]} 51. Qxb5 {[%clk 0:00:20]}  Qd4 {[%clk 0:00:11]} 52. Qf5+ {[%clk 0:00:18]}  Kg7 {[%clk 0:00:11]} 53. Qe6 {[%clk 0:00:17]}  Kh6 {[%clk 0:00:04]} 54. a4 {[%clk 0:00:17]}  e3 {[%clk 0:00:04]} 55. fxe3 {[%clk 0:00:17]}  Qb2 {[%clk 0:00:03]} 56. a5 {[%clk 0:00:16]}  Kg7 {[%clk 0:00:02]} 57. a6 {[%clk 0:00:16]}  Qa3 {[%clk 0:00:02]} 58. Qd7+ {[%clk 0:00:15]}  Kh6 {[%clk 0:00:02]} 59. a7 {[%clk 0:00:14]} 1-0


[Site "https://www.chess.com"]